bitfinex-derivatives/quotes_ETHF0:USTF0_20250906
["timestamp","ask_amount","ask_price","bid_price","bid_amount"]
[1757129492123,1.33367217,4320.7,4320.4,0.237]
[1757129492324,0.3987,4320.5,4320.4,0.4478]
[1757129492521,0.6991,4320.5,4320.4,0.9483]
[1757129493417,0.6991,4320.5,4320.4,1.65560706]
[1757129494225,1.33377614,4320.5,4320.4,1.65560706]
[1757129497028,1.33377614,4320.5,4320.4,0.9483]
[1757129497327,1.33377614,4320.5,4320.4,1.65560706]
[1757129498322,1.13847614,4320.5,4320.4,1.65560706]
[1757129498528,0.83807614,4320.5,4320.4,1.65560706]
[1757129498725,1.13847614,4320.5,4320.4,1.65560706]
[1757129499933,0.3004,4320.8,4320.7,0.4051]
[1757129500231,0.5038,4320.8,4320.7,1.34940706]
[1757129500430,1.13877151,4320.8,4320.7,1.34940706]
[1757129500732,1.33407151,4320.8,4320.7,1.65560706]
[1757129501132,1.33407151,4320.8,4320.7,0.9483]
[1757129502534,1.33407151,4320.8,4320.7,1.65560706]
[1757129502535,1.13877151,4320.8,4320.7,1.65560706]
[1757129502832,0.83837151,4320.8,4320.7,1.65560706]
[1757129503631,1.13877151,4320.8,4320.7,1.65560706]
[1757129504436,1.33407151,4320.8,4320.7,1.65560706]
[1757129504925,1.33407151,4320.8,4320.7,0.237]
[1757129505233,1.33407151,4320.8,4320.2,0.3062]
[1757129505234,0.6991,4320.3,4320.2,0.5005]
[1757129505435,0.6991,4320.3,4320.2,0.7365]
[1757129505731,0.6991,4320.3,4320.2,0.9473]
[1757129507932,0.6991,4320.3,4320.2,0.7113]
[1757129508135,0.6991,4320.3,4320.2,1.65460706]
[1757129509037,0.6991,4320.3,4320.2,0.9473]
[1757129509242,1.33430162,4320.3,4320.2,0.6411]
[1757129509433,1.33430162,4320.3,4320.2,0.4303]
[1757129510239,1.33430162,4320.3,4320.2,0.749]
[1757129510632,1.33430162,4320.3,4320.2,0.9624]
[1757129511135,0.63520162,4320.3,4320.2,0.9624]
[1757129511335,0.2956,4320.5,4320.3,0.3187]
[1757129511636,0.63523092,4320.4,4320.3,0.7308]
[1757129512041,1.12443092,4320.4,4320.3,0.7308]
[1757129512639,1.12443092,4320.4,4320.3,1.43810706]
[1757129514449,1.31913092,4320.4,4320.3,1.43810706]
[1757129523356,1.31913092,4320.4,4320.3,0.90600706]
[1757129523652,1.31913092,4320.4,4319.4,3.2078]
[1757129523653,0.8112,4319.5,4319.4,3.2078]
[1757129523960,1.44643092,4319.5,4319.4,3.4438]
[1757129524856,1.31913092,4319.5,4319.4,4.1746]
[1757129525160,1.31913092,4319.5,4319.4,4.88190706]
[1757129527361,1.44643092,4319.5,4319.4,4.1746]
[1757129527562,1.44643092,4319.5,4319.4,3.4065]
[1757129527864,1.44643092,4319.5,4319.4,3.6425]
[1757129528160,1.44643092,4319.5,4319.4,3.4438]
[1757129528364,0.8112,4319.5,4319.4,3.4438]
[1757129528664,1.4454348,4319.5,4319.4,3.4438]
[1757129529359,0.8112,4319.5,4319.4,3.4438]
[1757129529660,1.44525279,4319.5,4319.4,0.236]
[1757129530362,1.44525279,4319.5,4319.0,0.236]
[1757129530568,0.6839,4319.1,4319.0,0.7534]
[1757129532957,0.6839,4319.1,4319.0,0.4347]
[1757129534158,0.6839,4319.1,4319.0,0.7534]
[1757129534550,0.6839,4319.1,4319.0,0.9668]
[1757129537465,0.6839,4319.1,4319.0,0.4347]
[1757129537860,0.6839,4319.1,4319.0,0.7534]
[1757129538064,0.6839,4319.1,4319.0,0.9668]
[1757129539564,0.7138,4319.4,4319.3,0.7098]
[1757129544062,1.34677592,4319.4,4319.3,0.7098]
[1757129547366,0.63297592,4319.4,4319.3,0.7098]
[1757129547573,3.9216,4320.3,4320.2,0.4078]
[1757129548769,3.9216,4320.3,4320.2,0.1949]
[1757129548970,0.5179,4319.6,4319.5,0.6802]
[1757129549171,0.5179,4319.6,4319.5,0.9152]
[1757129549559,0.7138,4319.6,4319.5,0.1949]
[1757129549764,0.1204,4319.5,4319.2,0.9152]
[1757129549973,0.307,4319.5,4319.4,0.4078]
[1757129550169,0.5179,4319.5,4319.4,0.6802]
[1757129550370,0.6383,4319.5,4319.4,0.6802]
[1757129552372,0.4274,4319.5,4319.4,0.6802]
[1757129552575,0.6383,4320.0,4319.9,0.4078]
[1757129552873,0.8342,4320.0,4319.9,0.4078]
[1757129553073,0.6383,4319.5,4319.4,0.6802]
[1757129553373,0.6383,4319.5,4319.4,0.9152]
[1757129553568,0.8342,4319.5,4319.4,0.4078]
[1757129553777,0.8342,4319.5,4319.4,0.1949]
[1757129554074,0.8342,4319.5,4319.0,0.2724]
[1757129554268,0.4068,4319.2,4319.1,0.4299]
[1757129554464,0.7138,4319.2,4319.1,0.4299]
[1757129555478,0.1204,4319.5,4318.9,0.1949]
[1757129555479,0.1204,4319.0,4318.9,0.1949]
[1757129555775,0.8342,4319.0,4318.9,0.4299]
[1757129556573,0.8342,4319.0,4318.9,0.6428]
[1757129557376,0.8342,4319.0,4318.9,0.4299]
[1757129559474,1.4668504,4319.0,4318.9,0.4299]
[1757129567681,1.4668504,4319.0,4318.9,0.6428]
[1757129567882,0.6383,4319.0,4318.9,0.9152]
[1757129573283,0.8355,4319.0,4318.9,0.6428]
[1757129573981,0.8355,4319.0,4318.9,0.915]
[1757129575382,0.3189,4319.4,4318.9,0.6428]
[1757129575584,0.3189,4319.2,4319.1,0.4138]
[1757129575786,1.15556276,4319.2,4319.1,0.92]
[1757129576082,1.35276276,4319.2,4319.1,0.92]
[1757129576282,1.35276276,4319.2,4319.1,0.6478]
[1757129576984,1.15556276,4319.2,4319.1,0.92]
[1757129579587,1.35276276,4319.2,4319.1,0.6478]
[1757129579989,1.35276276,4319.2,4319.1,0.92]
[1757129582495,1.35276276,4319.2,4319.1,0.6478]
[1757129583589,1.35276276,4319.2,4319.1,0.92]
[1757129583890,0.72,4319.8,4319.7,0.2083]
[1757129584091,1.35347093,4319.8,4319.7,0.4423]
[1757129584483,1.35347093,4319.8,4319.7,0.234]
[1757129584684,0.72,4319.4,4319.3,3.2078]
[1757129584885,1.35347093,4319.4,4319.3,3.4418]
[1757129585694,1.35317214,4319.4,4319.3,3.4418]
[1757129585893,1.35317214,4319.4,4319.3,3.6501]
[1757129586494,1.35317214,4319.4,4319.3,3.8556]
[1757129587690,0.95207214,4319.4,4319.3,4.1278]
[1757129588094,0.3189,4319.4,4319.3,4.1278]
[1757129588399,0.5228,4319.4,4319.3,4.1278]
[1757129589689,0.72,4319.4,4319.3,3.6501]
[1757129589894,0.126,4319.0,4318.9,0.2083]
[1757129590098,0.5271,4319.0,4318.9,0.4423]
[1757129590601,0.846,4319.0,4318.9,0.4423]
[1757129591502,0.72,4318.9,4318.8,3.2078]
[1757129591700,0.72,4318.9,4318.8,3.4418]
[1757129591901,1.35294709,4318.9,4318.8,3.4418]
[1757129595805,1.35294709,4318.9,4318.8,3.8556]
[1757129596003,0.3189,4318.9,4318.8,4.97702771]
[1757129596596,0.5228,4318.9,4318.8,4.97702771]
[1757129597500,0.72,4318.9,4318.8,3.4161]
[1757129597799,0.72,4318.9,4318.8,3.4418]
[1757129598201,1.35291916,4318.9,4318.8,3.4418]
[1757129600212,0.72,4318.9,4318.8,3.4418]
[1757129600909,0.72,4318.9,4318.8,3.6406]
[1757129603313,0.72,4318.9,4318.8,3.8334]
[1757129603808,0.126,4319.5,4318.9,0.273]
[1757129604012,1.14053099,4319.4,4319.3,0.3916]
[1757129604215,1.14053099,4319.4,4319.3,0.6256]
[1757129604408,1.35023099,4319.4,4319.3,0.6256]
[1757129607813,1.35023099,4319.4,4319.3,1.74792771]
[1757129607814,0.63273099,4319.4,4319.3,1.74792771]
[1757129608117,0.3050707,4319.9,4319.5,0.41667]
[1757129608318,0.3050707,4319.9,4319.6,0.234]
[1757129608319,0.0034707,4319.9,4319.6,0.234]
[1757129608618,0.3016,4319.8,4319.6,0.234]
[1757129608816,0.3016,4319.8,4319.6,0.65066]
[1757129609005,0.3016,4319.8,4319.6,0.234]
[1757129609210,0.3016,4319.8,4319.7,0.84922771]
[1757129609713,0.0034707,4319.9,4319.7,0.84922771]
[1757129609909,0.0034707,4319.9,4319.8,3.62444]
[1757129610814,0.0034707,4319.9,4319.8,7.62444]
[1757129611218,0.0034707,4319.9,4319.8,7.85593]
[1757129611810,0.0034707,4319.9,4319.8,7.85844]
[1757129615016,0.7209707,4319.9,4319.8,3.4418]
[1757129618518,0.7209707,4319.9,4318.5,0.0595]
[1757129618519,0.7175,4319.4,4319.3,3.2078]
[1757129618719,1.42513253,4319.4,4319.3,3.2078]
[1757129620120,2.0552512,4319.4,4319.3,3.2078]
[1757129624825,1.34761867,4319.4,4319.3,3.2078]
[1757129628733,0.7175,4319.4,4319.3,3.2078]
[1757129630839,0.5047,4319.4,4319.3,3.2078]
[1757129631226,0.3016,4319.4,4319.3,3.2078]
[1757129631833,0.5047,4319.4,4319.3,3.2078]
[1757129633738,0.3016,4319.4,4319.3,3.2078]
[1757129635734,0.5047,4319.4,4319.3,3.2078]
[1757129635935,0.3016,4319.4,4319.3,3.2078]
[1757129641440,0.0034707,4319.9,4319.3,7.85601]
[1757129641651,0.306,4319.8,4319.7,0.70763253]
[1757129641849,0.7148,4319.8,4319.7,0.234]
[1757129642535,0.306,4319.8,4319.7,0.234]
[1757129642848,0.0034707,4319.9,4319.7,0.94163253]
[1757129643043,0.3094707,4319.9,4319.8,3.2078]
[1757129643542,0.0034707,4319.9,4319.8,3.4418]
[1757129643740,0.0034707,4319.9,4319.8,4.14943253]
[1757129646544,0.3094707,4319.9,4319.8,4.14943253]
[1757129647049,0.5125707,4319.9,4319.8,3.4418]
[1757129648346,0.7182707,4319.9,4319.8,3.4418]
[1757129651249,0.5125707,4319.9,4319.8,3.4418]
[1757129652349,0.3094707,4319.9,4319.8,3.4418]
[1757129652549,0.5125707,4319.9,4319.8,3.2078]
[1757129652846,0.5125707,4319.9,4319.8,3.4418]
[1757129655850,0.0034707,4319.9,4319.8,3.4418]
[1757129656750,0.3094707,4319.9,4319.8,3.4418]
[1757129658645,0.0034707,4319.9,4319.8,3.4418]
[1757129661652,0.3066707,4319.9,4319.8,3.4418]
[1757129666959,0.0034707,4319.9,4319.8,3.4418]
[1757129668761,0.3066707,4319.9,4319.8,3.4418]
[1757129668961,0.0034707,4319.9,4319.8,3.4418]
[1757129671065,0.0034707,4319.9,4319.8,7.4418]
[1757129673161,0.3032,4320.9,4320.8,0.1854]
[1757129673361,1.45901893,4321.4,4320.9,0.1159]
[1757129673362,0.3032,4321.4,4320.9,0.1159]
[1757129673561,0.7265,4321.4,4321.3,0.1854]
[1757129673762,1.35765486,4321.4,4321.3,0.4184]
[1757129678271,1.35765486,4321.4,4321.3,0.233]
[1757129680766,1.05445486,4321.4,4320.8,3.2078]
[1757129680970,0.4233,4320.9,4320.8,3.3932]
[1757129681160,0.7265,4320.9,4320.8,3.3932]
[1757129681366,0.7265,4320.9,4320.8,3.4408]
[1757129681566,0.7265,4320.9,4320.8,3.2078]
[1757129681770,0.7265,4320.9,4320.8,3.4408]
[1757129685381,0.7265,4320.9,4320.8,3.6262]
[1757129685578,0.7265,4320.9,4320.8,3.8116]
[1757129686380,0.7265,4320.9,4320.8,3.4408]
[1757129686581,0.7265,4320.9,4320.8,3.6262]
[1757129687587,0.7265,4320.9,4320.8,3.3932]
[1757129687782,0.7265,4320.9,4320.8,3.6262]
[1757129688484,0.1255,4321.5,4320.8,3.9306]
[1757129688686,0.81773096,4321.4,4321.3,0.3746]
[1757129688888,1.02733096,4321.4,4321.3,0.6076]
[1757129689289,1.32263096,4321.4,4321.3,0.6076]
[1757129691587,1.11303096,4321.4,4321.3,0.7247]
[1757129691789,0.2953,4321.4,4321.3,0.7247]
[1757129692893,0.2953,4321.4,4321.3,3.9325]
[1757129693495,0.6983,4321.4,4321.3,3.5824]
[1757129693695,0.6983,4321.4,4321.3,3.4408]
[1757129693898,0.6983,4320.9,4320.8,3.2078]
[1757129694102,0.6983,4320.9,4320.8,3.4408]
[1757129694598,0.6983,4320.9,4320.8,3.6281]
[1757129697599,0.6983,4320.9,4320.8,3.4408]
[1757129699197,0.6983,4320.9,4320.8,3.6281]
[1757129700300,1.32389795,4320.9,4320.8,3.8154]
[1757129700600,0.6983,4320.9,4320.8,3.8154]
[1757129700993,1.32389585,4320.9,4320.8,3.8154]
[1757129702195,1.32389585,4320.9,4320.8,0.6076]
[1757129702503,1.32389585,4320.9,4320.8,0.3746]
[1757129702690,1.32389585,4320.9,4320.8,0.6076]
[1757129703096,1.32389585,4320.9,4320.8,0.4203]
[1757129704000,1.32389585,4320.9,4320.8,0.233]
[1757129704304,0.1227,4320.5,4320.3,3.2078]
[1757129704505,0.6983,4320.4,4320.3,3.2078]
[1757129704807,1.32495546,4320.4,4320.3,3.4408]
[1757129707305,0.1227,4320.0,4319.7,3.2078]
[1757129707609,0.6983,4319.8,4319.7,3.2078]
[1757129707909,1.32418645,4319.8,4319.7,3.2078]
[1757129709704,1.32418645,4319.8,4319.7,3.5824]
[1757129710108,1.32418645,4319.8,4319.7,3.8154]
[1757129711312,0.2953,4319.8,4319.7,3.9325]
[1757129711906,0.4887,4319.8,4319.7,3.9325]
[1757129712302,0.4887,4319.8,4319.7,3.8154]
[1757129713111,0.4887,4319.8,4319.7,0.6076]
[1757129715008,0.4887,4319.8,4319.7,0.7247]
[1757129716115,0.2953,4319.8,4319.7,0.7247]
[1757129717316,0.2953,4319.8,4319.7,3.9325]
[1757129722422,0.3046,4320.0,4319.8,0.116]
[1757129722619,0.3046,4320.5,4320.4,0.4872]
[1757129722820,0.3046,4320.6,4320.5,0.116]
[1757129723023,0.3046,4320.6,4320.5,0.4872]
[1757129724415,0.499,4320.6,4320.5,0.4872]
[1757129725018,0.499,4320.6,4320.5,0.3712]
[1757129725223,1.12349612,4320.6,4320.5,0.3712]
[1757129726113,0.499,4320.6,4320.5,0.3712]
[1757129726718,0.3046,4320.6,4320.5,0.4871]
[1757129726920,0.1227,4321.0,4320.8,0.371]
[1757129727121,1.12363705,4320.9,4320.8,0.371]
[1757129727321,1.12363705,4320.9,4320.8,0.604]
[1757129727820,3.3333,4321.5,4320.8,0.604]
[1757129728023,3.3333,4321.5,4321.2,0.371]
[1757129728024,0.499,4321.3,4321.2,0.371]
[1757129728228,1.33498413,4321.3,4321.2,0.371]
[1757129728522,1.33498413,4321.3,4320.7,0.1159]
[1757129728728,1.33498413,4321.2,4321.1,0.233]
[1757129728923,1.33498413,4321.2,4321.1,0.1855]
[1757129729120,1.33498413,4321.2,4321.1,0.4185]
[1757129729316,0.92938413,4321.2,4321.1,0.7199]
[1757129729521,0.3046,4321.4,4321.2,0.1159]
[1757129729723,0.7102,4321.4,4321.3,0.371]
[1757129730234,0.7102,4321.4,4321.3,0.604]
[1757129730724,0.7102,4321.4,4321.3,0.371]
[1757129731025,0.499,4320.9,4320.8,0.371]
[1757129731221,0.7102,4320.9,4320.8,0.604]
[1757129731621,0.499,4320.9,4320.8,0.7199]
[1757129733539,0.499,4320.9,4320.8,0.604]
[1757129735440,0.499,4320.9,4320.8,1.31118179]
[1757129738637,0.499,4320.9,4320.7,3.2078]
[1757129738638,0.7102,4320.9,4320.7,3.2078]
[1757129738842,0.7102,4320.8,4320.7,3.2078]
[1757129739144,0.7102,4320.8,4320.7,3.4408]
[1757129739335,0.7102,4320.8,4320.7,3.8118]
[1757129745044,0.7102,4320.8,4320.7,3.9277]
[1757129745748,0.499,4320.8,4320.7,3.9277]
[1757129746344,0.3046,4320.9,4320.8,0.4869]
[1757129746646,0.7102,4321.4,4321.3,0.1855]
[1757129746839,1.33519507,4321.4,4321.3,0.233]
[1757129747442,5.33519507,4321.4,4321.3,0.233]
[1757129747748,6.04237686,4321.4,4321.3,0.233]
[1757129750943,1.33519507,4321.4,4321.3,0.233]
[1757129762860,1.33519507,4321.4,4321.3,0.6042]
[1757129763063,1.33519507,4321.4,4321.3,0.7202]
[1757129763260,1.33519507,4321.4,4321.3,0.6042]
[1757129763963,1.33519507,4321.4,4321.3,0.79106177]
[1757129764761,0.62499507,4321.4,4321.3,5.13847176]
[1757129764955,0.3141,4321.7,4321.6,0.4872]
[1757129765262,0.94116916,4321.7,4321.6,1.19438179]
[1757129765663,0.62706916,4321.7,4321.6,1.19438179]
[1757129765852,0.3141,4322.0,4321.7,0.116]
[1757129766055,0.3141,4322.0,4321.9,4.40218179]
[1757129766255,1.26892926,4322.0,4321.9,4.28618179]
[1757129767064,1.26892926,4322.0,4321.9,4.40218179]
[1757129767065,0.94082926,4322.0,4321.9,4.40218179]
[1757129767263,0.3141,4322.0,4321.9,4.40218179]
[1757129767865,0.3141,4322.0,4321.9,4.63518179]
[1757129768466,0.3141,4322.0,4321.9,3.928]
[1757129768661,0.124,4322.5,4322.0,0.41643]
[1757129768872,0.3273,4322.5,4322.4,1.07838179]
[1757129769067,0.95319193,4322.5,4322.4,1.31138179]
[1757129769267,0.6414,4322.5,4322.4,1.31138179]
[1757129769769,0.8553,4322.5,4322.4,1.31138179]
[1757129771462,0.8553,4322.5,4322.4,0.4186]
[1757129771671,0.8561,4322.0,4321.9,3.3934]
[1757129771871,0.8561,4322.0,4321.9,3.6264]
[1757129772170,0.8561,4322.0,4321.9,4.51918179]
[1757129773664,0.8561,4322.0,4321.9,4.28618179]
[1757129773864,0.542,4321.5,4321.4,0.1856]
[1757129774070,0.8561,4321.5,4321.4,0.4186]
[1757129774271,0.8561,4321.5,4321.4,1.12578179]
[1757129775568,0.8561,4321.5,4321.4,1.31138179]
[1757129777175,0.8561,4321.5,4321.4,1.42738179]
[1757129777673,0.8561,4321.5,4321.4,1.19438179]
[1757129777972,0.8561,4321.5,4321.4,1.42738179]
[1757129778373,0.8561,4321.5,4321.4,1.31138179]
[1757129778869,0.291,4321.4,4321.3,3.2078]
[1757129779174,0.6877,4321.4,4321.3,3.2078]
[1757129779570,1.31240762,4321.4,4321.3,3.2078]
[1757129780968,1.31240762,4321.4,4321.3,3.4408]
[1757129786378,1.31240762,4321.4,4321.3,3.6264]
[1757129787280,1.31240762,4321.4,4321.3,3.4408]
[1757129788972,1.31240762,4321.4,4321.3,3.6264]
[1757129789172,1.31240762,4321.4,4321.3,3.8119]
[1757129793382,1.31240762,4321.4,4321.3,3.4408]
[1757129793680,1.31240762,4321.4,4321.3,0.233]
[1757129794184,1.31240762,4321.4,4321.3,0.4185]
[1757129798182,1.31240762,4321.4,4321.3,0.233]
[1757129798784,1.31240762,4321.4,4321.2,0.0034707]
[1757129798983,0.6877,4321.4,4321.2,0.2364707]
[1757129799286,1.31294848,4321.3,4321.2,0.0034707]
[1757129801377,0.6877,4321.3,4321.2,0.0034707]
[1757129801578,1.31335736,4321.3,4321.2,0.0034707]
[1757129804190,1.31335736,4321.3,4321.2,0.1889707]
[1757129804394,1.31335736,4321.3,4321.2,0.3744707]
[1757129808887,1.31480631,4321.3,4321.2,0.3744707]
[1757129809594,0.62710631,4321.3,4321.2,0.4904707]
[1757129810092,0.94100631,4321.3,4321.2,0.4904707]
[1757129811988,1.13760631,4321.3,4321.2,0.4904707]
[1757129814293,0.94100631,4321.3,4321.2,0.4904707]
[1757129815299,1.13760631,4321.3,4321.2,0.4904707]
[1757129815500,1.13760631,4321.3,4321.2,0.3744707]
[1757129815902,1.13760631,4321.3,4321.2,0.4904707]
[1757129816597,0.5105,4321.3,4321.2,0.4904707]
[1757129818396,0.5105,4321.3,4321.2,0.3744707]
[1757129818704,0.7189,4321.3,4321.2,0.3744707]
[1757129819898,0.7189,4321.3,4321.2,0.1889707]
[1757129820100,0.7189,4321.3,4321.2,0.2364707]
[1757129820404,1.34558509,4321.3,4321.2,0.2364707]
[1757129823500,1.34558509,4321.3,4321.1,3.2078]
[1757129823807,0.7189,4320.7,4320.6,3.2078]
[1757129823998,0.7189,4320.7,4320.6,3.4408]
[1757129824398,0.7189,4320.7,4320.6,3.6377]
[1757129829503,0.1162,4320.0,4319.5,0.2955]
[1757129829703,0.8351,4319.5,4319.4,3.2078]
[1757129829896,1.46141265,4319.5,4319.4,3.2078]
[1757129830408,1.46141265,4319.5,4319.4,4.99451985]
[1757129830709,1.13681265,4319.5,4319.4,4.99451985]
[1757129831308,0.5105,4319.5,4319.4,4.99451985]
[1757129832505,0.5105,4319.5,4319.4,1.78671985]
[1757129833109,0.6267,4319.5,4319.4,1.78671985]
[1757129835105,0.8351,4319.5,4319.4,0.4299]
[1757129835807,0.8351,4319.0,4318.9,3.4047]
[1757129836118,0.8351,4319.0,4318.9,4.1277]
[1757129843215,0.8351,4319.0,4318.9,3.2078]
[1757129843410,0.8351,4319.0,4318.9,3.6414]
[1757129844420,0.8351,4319.0,4318.9,0.4336]
[1757129844920,0.8351,4319.0,4318.9,0.6358]
[1757129846022,0.8351,4319.0,4318.9,0.9525]
[1757129846914,0.1162,4319.5,4318.9,0.9525]
[1757129847122,0.824,4319.5,4319.4,0.2006]
[1757129849226,0.5124,4319.5,4319.1,0.5497]
[1757129849422,0.7078,4319.2,4319.1,0.9525]
[1757129854123,0.3116,4319.2,4319.1,0.9525]
[1757129854925,0.5063,4319.2,4319.1,0.9525]
[1757129855823,0.3116,4319.2,4319.1,0.9525]
[1757129856017,3.2078,4319.8,4319.4,0.3167]
[1757129856225,0.629,4319.5,4319.4,0.7195]
[1757129856526,1.45573994,4319.5,4319.4,0.6358]
[1757129856917,1.45573994,4319.5,4319.4,0.4336]
[1757129860225,1.45573994,4319.5,4319.4,0.6358]
[1757129860425,1.25423994,4319.5,4319.4,0.9525]
[1757129860730,1.13153994,4319.5,4319.4,0.9525]
[1757129863234,1.25423994,4319.5,4319.4,0.9525]
[1757129865132,1.45573994,4319.5,4319.4,0.9525]
[1757129869237,1.45573994,4319.5,4319.4,0.6358]
[1757129869439,0.7127,4319.4,4319.3,0.73392915]
[1757129869640,1.33793994,4319.4,4319.3,0.96692915]
[1757129872142,1.33793994,4319.4,4319.3,1.16542915]
[1757129874446,1.33793994,4319.4,4319.3,1.67322915]
[1757129877145,1.33793994,4319.4,4319.3,1.36672915]
[1757129877936,1.33793994,4319.4,4319.3,0.233]
[1757129878138,1.33793994,4319.4,4319.0,3.94172915]
[1757129878343,0.4036,4319.2,4319.1,0.233]
[1757129878543,1.33793994,4319.2,4319.1,0.4315]
[1757129880447,1.13163994,4319.2,4319.1,0.9393]
[1757129881146,1.33793994,4319.2,4319.1,0.9393]
[1757129882353,0.7127,4319.2,4319.1,0.9393]
[1757129882554,1.3400904,4319.2,4319.1,0.9393]
[1757129882848,1.3400904,4319.2,4319.1,0.233]
[1757129883948,0.4303,4319.0,4318.5,3.2078]
[1757129884153,0.7127,4318.6,4318.5,3.6076]
[1757129884347,0.7127,4318.6,4318.5,4.57452915]
[1757129884750,0.7127,4318.6,4318.5,4.34152915]
[1757129884953,0.7127,4318.6,4318.5,4.88102915]
[1757129886760,0.5064,4318.6,4318.5,4.88102915]
[1757129887258,0.5064,4318.6,4318.5,4.1471]
[1757129887459,0.5064,4318.6,4318.5,4.88102915]
[1757129889062,0.7127,4318.6,4318.5,4.64802915]
[1757129889261,0.7127,4318.6,4318.5,4.88102915]
[1757129890568,0.5064,4318.6,4318.5,4.88102915]
[1757129896968,0.3091,4318.6,4318.5,4.88102915]
[1757129898974,0.5064,4318.6,4318.5,4.88102915]
[1757129899368,0.7025,4318.6,4318.5,3.9141]
[1757129899568,0.7025,4318.6,4318.5,4.88102915]
[1757129899769,0.3073,4318.9,4318.5,4.57452915]
[1757129899970,0.8276,4319.0,4318.9,1.15452915]
[1757129900270,0.62690333,4319.0,4318.9,1.70402915]
[1757129900475,0.3073,4319.5,4319.4,0.4206]
[1757129900665,0.93426722,4319.5,4319.4,1.70402915]
[1757129900866,0.62696722,4319.5,4319.4,1.70402915]
[1757129901063,0.1162,4320.0,4319.4,1.70402915]
[1757129901263,0.203,4319.6,4319.5,0.2089]
[1757129901474,0.5103,4319.6,4319.5,0.9701]
[1757129901873,0.7064,4319.6,4319.5,0.9701]
[1757129902070,0.7064,4319.6,4319.5,0.6536]
[1757129902272,0.7064,4319.2,4318.7,0.3165]
[1757129902473,0.3991,4318.9,4318.8,0.4447]
[1757129902678,0.7064,4318.9,4318.8,0.4447]
[1757129903582,0.5103,4318.1,4318.0,35.1528]
[1757129903880,0.5103,4318.1,4318.0,35.3858]
[1757129904180,0.5103,4318.1,4318.0,35.7023]
[1757129905084,0.3299,4318.5,4318.4,0.7371]
[1757129905383,0.956267,4318.5,4318.4,0.9701]
[1757129905574,1.152367,4318.5,4318.4,0.9701]
[1757129905773,1.459667,4318.5,4318.4,0.9701]
[1757129906680,1.459667,4318.5,4318.4,0.6536]
[1757129907283,0.8333,4318.5,4318.4,0.6536]
[1757129910980,0.5103,4318.5,4318.4,0.9701]
[1757129911584,0.6372,4318.5,4318.4,0.9701]
[1757129911784,0.8333,4318.5,4318.4,0.9701]
[1757129916397,0.8333,4318.5,4318.4,0.233]
[1757129917895,0.3073,4318.4,4318.0,3.5243]
[1757129918099,0.7064,4318.2,4318.1,0.4447]
[1757129918292,0.7064,4318.2,4318.1,0.6536]
[1757129918492,0.7064,4318.2,4318.1,0.9701]
[1757129920197,0.3073,4318.2,4318.1,0.9701]
[1757129922704,0.7064,4318.2,4318.1,0.9701]
[1757129929604,0.5103,4318.2,4318.1,0.9701]
[1757129933410,1.140534,4318.2,4318.1,0.9701]
[1757129933712,1.352534,4318.2,4318.1,0.9701]
[1757129933906,1.352534,4318.2,4318.1,0.6536]
[1757129937715,1.352534,4318.2,4318.1,0.9492]
[1757129940417,0.630234,4318.2,4318.1,0.9492]
[1757129940619,0.945934,4318.2,4318.1,0.9492]
[1757129940816,1.144634,4318.2,4318.1,0.9492]
[1757129947326,1.356634,4318.2,4318.1,0.6536]
[1757129947522,1.356634,4318.2,4318.1,0.4447]
[1757129957035,1.35638341,4318.2,4318.1,0.4447]
[1757129971246,1.35638341,4318.2,4318.1,0.233]
[1757129972444,0.7264,4318.2,4318.1,0.233]
[1757129972649,1.35640037,4318.2,4318.1,0.233]
[1757129982756,1.35640037,4318.2,4318.1,0.4304]
[1757129982953,0.4053,4319.5,4319.4,0.714]
[1757129983153,3.6131,4320.0,4319.9,0.714]
[1757129983352,3.6131,4320.0,4319.9,1.68128398]
[1757129983749,3.4045,4320.6,4320.5,0.1974]
[1757129983955,0.4053,4320.6,4320.5,0.7488]
[1757129984454,0.4053,4320.4,4320.3,3.2078]
[1757129984655,0.4053,4320.4,4320.3,3.4408]
[1757129984861,0.4053,4320.4,4320.3,3.7592]
[1757129985055,0.7049,4320.4,4320.3,3.7592]
[1757129985363,0.7049,4320.4,4320.3,3.9566]
[1757129988656,0.7049,4320.4,4320.3,4.1548]
[1757129989754,0.4053,4320.4,4320.3,4.1548]
[1757129990560,0.1191,4321.0,4320.3,3.8364]
[1757129990764,0.2126,4320.9,4320.8,1.44948398]
[1757129990963,0.411,4320.9,4320.8,1.68248398]
[1757129991164,0.7157,4320.9,4320.8,1.68248398]
[1757129992261,0.7157,4320.9,4320.8,0.9482]
[1757129999073,0.7157,4320.9,4320.8,0.7504]
[1757130001373,0.7157,4320.9,4320.8,0.9482]
[1757130001873,0.7157,4320.9,4320.8,0.7504]
[1757130003872,0.94714,4320.9,4320.8,0.233]
[1757130004178,0.3047,4320.8,4320.3,3.4408]
[1757130004371,0.411,4320.5,4320.4,0.5174]
[1757130004574,0.7157,4320.5,4320.4,0.7152]
[1757130006066,0.5369,4320.5,4320.3,3.7534]
[1757130006270,0.3047,4320.4,4320.3,3.7534]
[1757130006467,0.7157,4320.4,4320.3,3.9582]
[1757130007176,0.7157,4320.4,4320.3,4.156]
[1757130013180,1.33487294,4320.4,4320.3,4.156]
[1757130013679,2.06915692,4320.4,4320.3,0.5456]
[1757130013985,2.06915692,4320.4,4320.3,0.7504]
[1757130014180,2.06915692,4320.4,4320.3,0.9482]
[1757130014387,1.33487294,4320.4,4320.3,0.9482]
[1757130015282,1.03017294,4320.4,4320.3,0.9482]
[1757130015679,0.83177294,4320.4,4320.3,0.9482]
[1757130017685,0.61917294,4320.4,4320.3,0.9482]
[1757130017893,1.33487294,4320.4,4320.3,0.9482]
[1757130019489,1.03017294,4320.4,4320.3,0.9482]